[Event "Championnat d'Europe Rapide"]
[Date "2024.12.07"]
[White "Eftovski, Mateo"]
[Black "Bulmaga, Irina"]
[WhiteElo "2029"]
[BlackElo "2386"]
[Round "6.43"]
[Result "0-1"]
[TimeControl "900+10"]

1. d4 {[%clk 00:15:19]} Nf6 {[%emt 00:00:02] [%clk 00:15:18]} 2. c4 {[%emt
00:00:02] [%clk 00:15:27]} e6 {[%emt 00:00:02] [%clk 00:15:25]} 3. Nc3 {[%emt
00:00:02] [%clk 00:15:35]} Bb4 {[%emt 00:00:02] [%clk 00:15:33]} 4. Nf3 {[%emt
00:00:02] [%clk 00:15:43]} b6 {[%emt 00:00:03] [%clk 00:15:41]} 5. Qc2 {[%emt
00:00:04] [%clk 00:15:50]} Bb7 {[%emt 00:00:03] [%clk 00:15:48]} 6. a3 {[%emt
00:00:02] [%clk 00:15:58]} Bxc3+ {[%emt 00:00:06] [%clk 00:15:50]} 7. Qxc3
{[%emt 00:00:02] [%clk 00:16:06]} d6 {[%emt 00:00:19] [%clk 00:15:42]} 8. g3
{[%emt 00:00:07] [%clk 00:16:09]} Nbd7 {[%emt 00:00:07] [%clk 00:15:45]} 9. Bg2
{[%emt 00:00:13] [%clk 00:16:07]} O-O {[%emt 00:00:25] [%clk 00:15:29]} 10. O-O
{[%emt 00:00:03] [%clk 00:16:14]} Ne4 {[%emt 00:00:17] [%clk 00:15:22]} 11. Qc2
{[%emt 00:00:04] [%clk 00:16:21]} f5 {[%emt 00:00:04] [%clk 00:15:27]} 12. Ng5
{[%emt 00:01:04] [%clk 00:15:27]} Nxg5 {[%emt 00:00:49] [%clk 00:14:48]} 13.
Bxb7 {[%emt 00:00:04] [%clk 00:15:33]} Rb8 {[%emt 00:00:01] [%clk 00:14:57]} 14.
Bg2 {[%emt 00:00:23] [%clk 00:15:20]} c5 {[%emt 00:00:44] [%clk 00:14:22]} 15.
d5 {[%emt 00:01:25] [%clk 00:14:06]} e5 {[%emt 00:01:02] [%clk 00:13:30]} 16. h4
{[%emt 00:03:21] [%clk 00:10:54]} Ne4 {[%emt 00:00:02] [%clk 00:13:38]} 17. Bxe4
{[%emt 00:00:03] [%clk 00:11:02]} fxe4 {[%emt 00:00:02] [%clk 00:13:46]} 18.
Qxe4 {[%emt 00:00:02] [%clk 00:11:10]} b5 {[%emt 00:00:27] [%clk 00:13:29]} 19.
Bg5 {[%emt 00:03:47] [%clk 00:07:32]} Qe8 {[%emt 00:03:49] [%clk 00:09:51]} 20.
b3 {[%emt 00:02:46] [%clk 00:04:57]} h6 {[%emt 00:00:04] [%clk 00:09:56]} 21.
Bd2 {[%emt 00:00:28] [%clk 00:04:39]} Nf6 {[%emt 00:00:21] [%clk 00:09:45]} 22.
Qc2 {[%emt 00:00:54] [%clk 00:03:56]} Qh5 {[%emt 00:00:42] [%clk 00:09:13]} 23.
f3 {[%emt 00:01:09] [%clk 00:02:56]} Rb7 {[%emt 00:01:43] [%clk 00:07:39]} 24.
Be1 {[%emt 00:00:21] [%clk 00:02:46]} e4 {[%emt 00:00:17] [%clk 00:07:32]} 25.
g4 {[%emt 00:01:25] [%clk 00:01:31]} Qe5 {[%emt 00:00:02] [%clk 00:07:40]} 26.
Qc3 {[%emt 00:00:20] [%clk 00:01:22]} Qe7 {[%emt 00:00:24] [%clk 00:07:25]} 27.
Bg3 {[%emt 00:00:01] [%clk 00:01:30]} Rfb8 {[%emt 00:00:15] [%clk 00:07:20]} 28.
cxb5 {[%emt 00:00:29] [%clk 00:01:12]} Rxb5 {[%emt 00:00:04] [%clk 00:07:26]}
29. b4 {[%emt 00:00:36] [%clk 00:00:47]} cxb4 {[%emt 00:00:13] [%clk 00:07:22]}
30. axb4 {[%emt 00:00:02] [%clk 00:00:56]} Rxb4 {[%emt 00:00:25] [%clk
00:07:06]} 31. Ra6 {[%emt 00:00:37] [%clk 00:00:29]} exf3 {[%emt 00:02:58] [%clk
00:04:19]} 32. exf3 {[%emt 00:00:24] [%clk 00:00:15]} Qe2 {[%emt 00:00:02] [%clk
00:04:26]} 33. Rxd6 {[%emt 00:00:06] [%clk 00:00:19]} Rb1 {[%emt 00:00:38] [%clk
00:03:58]} 34. Re1 {[%emt 00:00:05] [%clk 00:00:25]} R8b2 {[%emt 00:02:18] [%clk
00:01:49]} 0-1

[Site "Europe Echecs"]

[Event "Championnat d'Europe Rapide"]
[Date "2024.12.07"]
[White "Rigopoulos-Tsigkos, Alexandros"]
[Black "Hamitevici, Vladimir"]
[WhiteElo "2068"]
[BlackElo "2423"]
[Round "6.44"]
[Result "0-1"]
[TimeControl "900+10"]

1. e4 {[%emt 00:00:14] [%clk 00:15:06]} c6 {[%emt 00:00:07] [%clk 00:15:13]} 2.
d4 {[%emt 00:00:03] [%clk 00:15:13]} d5 {[%emt 00:00:01] [%clk 00:15:22]} 3. e5
{[%emt 00:00:02] [%clk 00:15:21]} Bf5 {[%emt 00:00:04] [%clk 00:15:28]} 4. h4
{[%emt 00:00:02] [%clk 00:15:29]} a6 {[%emt 00:00:13] [%clk 00:15:25]} 5. g4
{[%emt 00:00:56] [%clk 00:14:44]} Bd7 {[%emt 00:00:02] [%clk 00:15:32]} 6. h5
{[%emt 00:00:12] [%clk 00:14:42]} Qc8 {[%emt 00:00:11] [%clk 00:15:31]} 7. Be2
{[%emt 00:00:22] [%clk 00:14:30]} c5 {[%emt 00:00:28] [%clk 00:15:13]} 8. c3
{[%emt 00:00:15] [%clk 00:14:26]} Nc6 {[%emt 00:00:06] [%clk 00:15:16]} 9. Be3
{[%emt 00:00:19] [%clk 00:14:18]} Nh6 {[%emt 00:01:18] [%clk 00:14:07]} 10. f3
{[%emt 00:02:40] [%clk 00:11:48]} e6 {[%emt 00:00:13] [%clk 00:14:05]} 11. f4
{[%emt 00:01:02] [%clk 00:10:56]} cxd4 {[%emt 00:01:22] [%clk 00:12:53]} 12.
cxd4 {[%emt 00:00:06] [%clk 00:11:00]} f6 {[%clk 00:13:02]} 13. Nc3 {[%emt
00:01:39] [%clk 00:09:32]} Qc7 {[%emt 00:00:01] [%clk 00:13:11]} 14. Rc1 {[%emt
00:02:16] [%clk 00:07:26]} Be7 {[%emt 00:03:04] [%clk 00:10:16]} 15. Bf3 {[%emt
00:02:11] [%clk 00:05:26]} fxe5 {[%emt 00:01:15] [%clk 00:09:11]} 16. fxe5
{[%emt 00:02:25] [%clk 00:03:10]} O-O {[%emt 00:00:04] [%clk 00:09:18]} 17. Qd2
{[%emt 00:01:09] [%clk 00:02:10]} Nxe5 {[%emt 00:01:17] [%clk 00:08:12]} 18.
dxe5 {[%emt 00:00:30] [%clk 00:01:50]} Qxe5 {[%emt 00:00:02] [%clk 00:08:20]}
19. Nce2 {[%emt 00:01:14] [%clk 00:00:46]} Nf7 {[%emt 00:04:08] [%clk 00:04:22]}
20. Bf4 {[%emt 00:00:30] [%clk 00:00:26]} Qf6 {[%emt 00:00:01] [%clk 00:04:30]}
21. Bg2 {[%emt 00:00:22] [%clk 00:00:15]} e5 {[%emt 00:00:49] [%clk 00:03:51]}
22. Bg3 {[%emt 00:00:10] [%clk 00:00:15]} d4 {[%emt 00:00:58] [%clk 00:03:03]}
23. Bh4 {[%emt 00:00:05] [%clk 00:00:20]} Qxh4+ {[%emt 00:01:08] [%clk
00:02:04]} 24. Rxh4 {[%emt 00:00:02] [%clk 00:00:28]} Bxh4+ {[%emt 00:00:01]
[%clk 00:02:13]} 25. Kd1 {[%emt 00:00:04] [%clk 00:00:35]} Bg5 {[%emt 00:00:10]
[%clk 00:02:12]} 26. Qb4 {[%emt 00:00:13] [%clk 00:00:33]} Bxc1 {[%emt 00:00:07]
[%clk 00:02:14]} 27. Nxc1 {[%emt 00:00:14] [%clk 00:00:30]} Bxg4+ {[%emt
00:00:04] [%clk 00:02:20]} 28. Bf3 {[%emt 00:00:03] [%clk 00:00:36]} Nh6 {[%emt
00:00:42] [%clk 00:01:48]} 29. Qxb7 {[%emt 00:00:08] [%clk 00:00:39]} Rae8
{[%emt 00:00:32] [%clk 00:01:25]} 30. Qd5+ {[%emt 00:00:15] [%clk 00:00:34]} Kh8
{[%emt 00:00:05] [%clk 00:01:31]} 31. Kc2 {[%emt 00:00:16] [%clk 00:00:29]} Nf5
{[%emt 00:00:31] [%clk 00:01:09]} 32. Kb1 {[%emt 00:00:08] [%clk 00:00:30]} Ne3
{[%emt 00:00:02] [%clk 00:01:17]} 33. Qb7 {[%emt 00:00:17] [%clk 00:00:24]} Rb8
{[%emt 00:00:13] [%clk 00:01:13]} 34. Qe7 {[%emt 00:00:16] [%clk 00:00:19]} Bf5+
{[%emt 00:00:30] [%clk 00:00:54]} 35. Ka1 {[%clk 00:00:28]} Rfc8 {[%emt
00:00:24] [%clk 00:00:40]} 36. Nge2 {[%emt 00:00:07] [%clk 00:00:31]} Nc2+
{[%emt 00:00:05] [%clk 00:00:45]} 37. Kb1 {[%emt 00:00:01] [%clk 00:00:40]} Ne1+
{[%emt 00:00:06] [%clk 00:00:49]} 38. Ka1 {[%emt 00:00:03] [%clk 00:00:47]} Nxf3
{[%emt 00:00:06] [%clk 00:00:53]} 39. h6 {[%emt 00:00:02] [%clk 00:00:54]} Rg8
{[%emt 00:00:20] [%clk 00:00:43]} 40. hxg7+ {[%emt 00:00:24] [%clk 00:00:41]}
Rxg7 {[%clk 00:00:52]} 41. Qf6 {[%emt 00:00:03]} Be4 {[%emt 00:00:21] [%clk
00:00:39]} 42. Ng3 {[%emt 00:00:12] [%clk 00:00:48]} Rc8 {[%emt 00:00:01] [%clk
00:00:47]} 43. Nb3 {[%emt 00:00:14] [%clk 00:00:44]} Rc6 {[%emt 00:00:01] [%clk
00:00:56]} 44. Qd8+ {[%emt 00:00:26] [%clk 00:00:29]} Rg8 {[%emt 00:00:01] [%clk
00:01:05]} 45. Qxg8+ {[%emt 00:00:28] [%clk 00:00:11]} Kxg8 {[%emt 00:00:02]
[%clk 00:01:12]} 46. Nxe4 {[%emt 00:00:02] [%clk 00:00:20]} h5 {[%emt 00:00:09]
[%clk 00:01:13]} 0-1

[Site "Europe Echecs"]

[Event "Championnat d'Europe Rapide"]
[Date "2024.12.07"]
[White "Trapp, Maximilian"]
[Black "Mastrovasilis, Dimitrios"]
[WhiteElo "2050"]
[BlackElo "2537"]
[Round "6.45"]
[Result "1-0"]
[TimeControl "900+10"]

1. d4 {[%emt 00:00:03] [%clk 00:15:16]} d5 {[%emt 00:00:45] [%clk 00:14:36]} 2.
Nf3 {[%emt 00:00:05] [%clk 00:15:21]} Nf6 {[%emt 00:00:07] [%clk 00:14:38]} 3.
Bf4 {[%emt 00:00:03] [%clk 00:15:29]} c5 {[%emt 00:00:04] [%clk 00:14:44]} 4. c3
{[%emt 00:00:04] [%clk 00:15:36]} Nc6 {[%emt 00:00:03] [%clk 00:14:50]} 5. e3
{[%emt 00:00:02] [%clk 00:15:44]} Qb6 {[%emt 00:00:05] [%clk 00:14:55]} 6. Qb3
{[%emt 00:00:01] [%clk 00:15:53]} c4 {[%emt 00:00:07] [%clk 00:14:58]} 7. Qc2
{[%emt 00:00:01] [%clk 00:16:01]} Bf5 {[%emt 00:00:09] [%clk 00:14:59]} 8. Qc1
{[%emt 00:00:02] [%clk 00:16:10]} e6 {[%emt 00:00:26] [%clk 00:14:43]} 9. h3
{[%emt 00:00:02] [%clk 00:16:18]} Qd8 {[%emt 00:00:32] [%clk 00:14:20]} 10. Be2
{[%emt 00:00:12] [%clk 00:16:16]} Bd6 {[%emt 00:00:02] [%clk 00:14:28]} 11. O-O
{[%emt 00:01:06] [%clk 00:15:20]} O-O {[%emt 00:00:23] [%clk 00:14:16]} 12. Nbd2
{[%emt 00:00:08] [%clk 00:15:22]} b5 {[%emt 00:00:13] [%clk 00:14:12]} 13. a3
{[%emt 00:00:02] [%clk 00:15:31]} a5 {[%emt 00:03:20] [%clk 00:11:03]} 14. Re1
{[%emt 00:00:22] [%clk 00:15:18]} Qc7 {[%emt 00:00:13] [%clk 00:11:00]} 15. Bxd6
{[%emt 00:00:14] [%clk 00:15:14]} Qxd6 {[%emt 00:00:01] [%clk 00:11:08]} 16. Nh4
{[%emt 00:00:45] [%clk 00:14:40]} Be4 {[%emt 00:00:48] [%clk 00:10:30]} 17. Nxe4
{[%emt 00:01:19] [%clk 00:13:31]} Nxe4 {[%emt 00:00:09] [%clk 00:10:30]} 18. Nf3
{[%emt 00:01:49] [%clk 00:11:53]} f5 {[%emt 00:01:02] [%clk 00:09:37]} 19. Nd2
{[%emt 00:00:22] [%clk 00:11:42]} e5 {[%emt 00:00:20] [%clk 00:09:27]} 20. Nf3
{[%emt 00:03:14] [%clk 00:08:39]} exd4 {[%emt 00:02:11] [%clk 00:07:25]} 21.
Nxd4 {[%emt 00:00:18] [%clk 00:08:31]} Nxd4 {[%emt 00:00:04] [%clk 00:07:31]}
22. exd4 {[%emt 00:00:02] [%clk 00:08:39]} f4 {[%emt 00:00:28] [%clk 00:07:13]}
23. Bf3 {[%emt 00:01:02] [%clk 00:07:47]} Ng5 {[%emt 00:00:43] [%clk 00:06:39]}
24. Qd1 {[%emt 00:00:32] [%clk 00:07:26]} Rae8 {[%emt 00:00:11] [%clk 00:06:37]}
25. Re5 {[%emt 00:00:11] [%clk 00:07:26]} Rxe5 {[%emt 00:00:30] [%clk 00:06:17]}
26. dxe5 {[%emt 00:00:01] [%clk 00:07:34]} Nxf3+ {[%emt 00:00:02] [%clk
00:06:26]} 27. Qxf3 {[%emt 00:00:02] [%clk 00:07:43]} Qxe5 {[%emt 00:00:01]
[%clk 00:06:34]} 28. Rd1 {[%clk 00:07:52]} Rf5 {[%emt 00:00:09] [%clk 00:06:35]}
29. Kf1 {[%emt 00:00:29] [%clk 00:07:34]} h6 {[%emt 00:00:33] [%clk 00:06:12]}
30. Re1 {[%emt 00:00:13] [%clk 00:07:31]} Qf6 {[%emt 00:00:02] [%clk 00:06:19]}
31. Rd1 {[%emt 00:00:18] [%clk 00:07:23]} Qe6 {[%emt 00:00:33] [%clk 00:05:56]}
32. Re1 {[%emt 00:00:02] [%clk 00:07:31]} Re5 {[%emt 00:00:15] [%clk 00:05:51]}
33. Rd1 {[%emt 00:01:17] [%clk 00:06:25]} Qf5 {[%emt 00:00:22] [%clk 00:05:38]}
34. Kg1 {[%emt 00:00:18] [%clk 00:06:17]} Kh7 {[%emt 00:00:15] [%clk 00:05:33]}
35. Kh2 {[%emt 00:00:18] [%clk 00:06:09]} Kg6 {[%emt 00:00:52] [%clk 00:04:51]}
36. Rd4 {[%emt 00:00:20] [%clk 00:05:59]} Re4 {[%emt 00:00:03] [%clk 00:04:58]}
37. Qd1 {[%emt 00:00:09] [%clk 00:06:00]} Rxd4 {[%emt 00:01:20] [%clk 00:03:48]}
38. Qxd4 {[%emt 00:00:02] [%clk 00:06:09]} f3 {[%emt 00:01:34] [%clk 00:02:24]}
39. g4 {[%emt 00:00:33] [%clk 00:05:46]} Qd3 {[%emt 00:00:38] [%clk 00:01:55]}
40. Qe5 {[%emt 00:00:17] [%clk 00:05:39]} Qe2 {[%emt 00:00:44] [%clk 00:01:21]}
41. Qf5# {[%emt 00:00:01] [%clk 00:05:36]} 1-0

[Site "Europe Echecs"]

[Event "Championnat d'Europe Rapide"]
[Date "2024.12.07"]
[White "Pantsulaia, Levan"]
[Black "Veleski, Robert"]
[WhiteElo "2522"]
[BlackElo "2093"]
[Round "6.46"]
[Result "1-0"]
[TimeControl "900+10"]

1. Nf3 {[%emt 00:26:49] [%clk 00:15:18]} Nf6 {[%emt 00:01:55] [%clk 00:13:25]}
2. g3 {[%emt 00:00:03] [%clk 00:15:25]} g6 {[%emt 00:00:02] [%clk 00:13:33]} 3.
b3 {[%emt 00:00:02] [%clk 00:15:33]} Bg7 {[%emt 00:00:02] [%clk 00:13:41]} 4.
Bb2 {[%emt 00:00:02] [%clk 00:15:41]} O-O {[%emt 00:00:03] [%clk 00:13:48]} 5.
Bg2 {[%emt 00:00:01] [%clk 00:15:49]} d6 {[%emt 00:00:02] [%clk 00:13:57]} 6. d4
{[%emt 00:00:02] [%clk 00:15:57]} d5 {[%emt 00:00:03] [%clk 00:14:04]} 7. c4
{[%emt 00:00:06] [%clk 00:16:01]} c6 {[%emt 00:01:22] [%clk 00:12:52]} 8. O-O
{[%emt 00:00:03] [%clk 00:16:08]} a5 {[%emt 00:00:20] [%clk 00:12:42]} 9. Nc3
{[%emt 00:00:18] [%clk 00:16:00]} Na6 {[%emt 00:00:06] [%clk 00:12:47]} 10. e3
{[%emt 00:00:03] [%clk 00:16:07]} Bg4 {[%emt 00:00:03] [%clk 00:12:53]} 11. h3
{[%emt 00:00:04] [%clk 00:16:13]} Be6 {[%emt 00:00:07] [%clk 00:12:57]} 12. Qe2
{[%emt 00:00:04] [%clk 00:16:18]} h6 {[%emt 00:00:21] [%clk 00:12:45]} 13. e4
{[%emt 00:00:15] [%clk 00:16:14]} Nxe4 {[%emt 00:00:14] [%clk 00:12:41]} 14.
Nxe4 {[%emt 00:00:02] [%clk 00:16:22]} dxe4 {[%emt 00:00:02] [%clk 00:12:49]}
15. Qxe4 {[%emt 00:00:02] [%clk 00:16:30]} Bf5 {[%emt 00:00:11] [%clk 00:12:48]}
16. Qe2 {[%emt 00:00:13] [%clk 00:16:27]} Nb4 {[%emt 00:00:17] [%clk 00:12:41]}
17. Rfd1 {[%emt 00:00:02] [%clk 00:16:35]} a4 {[%emt 00:00:18] [%clk 00:12:33]}
18. Bc3 {[%emt 00:00:46] [%clk 00:15:59]} Na6 {[%emt 00:01:11] [%clk 00:11:33]}
19. g4 {[%emt 00:00:32] [%clk 00:15:36]} Bc8 {[%emt 00:01:22] [%clk 00:10:22]}
20. Ne5 {[%emt 00:00:08] [%clk 00:15:36]} Qc7 {[%emt 00:01:05] [%clk 00:09:28]}
21. bxa4 {[%emt 00:00:24] [%clk 00:15:23]} Nb8 {[%emt 00:00:05] [%clk 00:09:32]}
22. a5 {[%emt 00:00:03] [%clk 00:15:31]} Nd7 {[%emt 00:00:02] [%clk 00:09:40]}
23. Rab1 {[%emt 00:01:33] [%clk 00:14:07]} Nxe5 {[%emt 00:00:27] [%clk
00:09:23]} 24. dxe5 {[%emt 00:00:02] [%clk 00:14:15]} Rxa5 {[%emt 00:00:23]
[%clk 00:09:10]} 25. Bxa5 {[%emt 00:00:06] [%clk 00:14:19]} Qxa5 {[%emt
00:00:01] [%clk 00:09:19]} 26. Re1 {[%emt 00:00:40] [%clk 00:13:48]} Qc5 {[%emt
00:00:19] [%clk 00:09:11]} 27. Bf1 {[%emt 00:00:11] [%clk 00:13:47]} Rd8 {[%emt
00:00:20] [%clk 00:09:02]} 28. Qe3 {[%emt 00:00:07] [%clk 00:13:49]} Qa5 {[%emt
00:00:35] [%clk 00:08:37]} 29. a3 {[%emt 00:01:19] [%clk 00:12:39]} h5 {[%emt
00:02:04] [%clk 00:06:44]} 30. gxh5 {[%emt 00:00:15] [%clk 00:12:35]} Bf5 {[%emt
00:00:14] [%clk 00:06:40]} 31. Qb6 {[%emt 00:01:24] [%clk 00:11:20]} Qd2 {[%emt
00:00:20] [%clk 00:06:31]} 32. Rb2 {[%emt 00:01:27] [%clk 00:10:03]} Qg5+ {[%emt
00:00:29] [%clk 00:06:11]} 33. Kh1 {[%emt 00:00:02] [%clk 00:10:10]} e6 {[%emt
00:00:11] [%clk 00:06:12]} 34. hxg6 {[%emt 00:01:19] [%clk 00:09:00]} Bxg6
{[%emt 00:00:31] [%clk 00:05:51]} 35. Qe3 {[%emt 00:00:17] [%clk 00:08:53]} Qh4
{[%emt 00:00:25] [%clk 00:05:36]} 36. Rxb7 {[%emt 00:00:31] [%clk 00:08:33]} Rd4
{[%emt 00:00:21] [%clk 00:05:25]} 37. Qg3 {[%emt 00:00:37] [%clk 00:08:04]} Qh5
{[%emt 00:00:41] [%clk 00:04:55]} 38. a4 {[%emt 00:00:34] [%clk 00:07:40]} Bh6
{[%emt 00:00:41] [%clk 00:04:24]} 39. a5 {[%emt 00:00:46] [%clk 00:07:04]} Bd2
{[%emt 00:00:02] [%clk 00:04:33]} 40. a6 {[%emt 00:00:31] [%clk 00:06:43]} Bxe1
{[%emt 00:00:44] [%clk 00:03:58]} 41. a7 {[%emt 00:00:02] [%clk 00:06:51]} Kh7
{[%emt 00:01:00] [%clk 00:03:08]} 42. a8=Q {[%emt 00:00:04] [%clk 00:06:58]} Qf5
{[%emt 00:02:06] [%clk 00:01:11]} 43. Rb8 {[%emt 00:00:15] [%clk 00:06:53]} 1-0

[Site "Europe Echecs"]

[Event "Championnat d'Europe Rapide"]
[Date "2024.12.07"]
[White "Andonovski, Ljubisa"]
[Black "Gavrilescu, David"]
[WhiteElo "2253"]
[BlackElo "2549"]
[Round "6.47"]
[Result "0-1"]
[TimeControl "900+10"]

1. d4 {[%emt 00:26:57] [%clk 00:15:17]} d5 {[%emt 00:00:02] [%clk 00:15:18]} 2.
c4 {[%emt 00:00:03] [%clk 00:15:24]} e6 {[%emt 00:00:02] [%clk 00:15:26]} 3. Nf3
{[%emt 00:00:08] [%clk 00:15:26]} Nf6 {[%emt 00:00:03] [%clk 00:15:34]} 4. Nc3
{[%emt 00:00:05] [%clk 00:15:31]} Nbd7 {[%emt 00:00:05] [%clk 00:15:37]} 5. cxd5
{[%emt 00:00:25] [%clk 00:15:17]} exd5 {[%emt 00:00:02] [%clk 00:15:45]} 6. Bf4
{[%emt 00:00:11] [%clk 00:15:16]} c6 {[%emt 00:00:04] [%clk 00:15:52]} 7. e3
{[%emt 00:00:15] [%clk 00:15:11]} Nh5 {[%emt 00:01:01] [%clk 00:15:01]} 8. Bg5
{[%emt 00:00:33] [%clk 00:14:48]} Be7 {[%emt 00:00:02] [%clk 00:15:08]} 9. Bxe7
{[%emt 00:00:12] [%clk 00:14:46]} Qxe7 {[%emt 00:00:02] [%clk 00:15:16]} 10. Be2
{[%emt 00:00:52] [%clk 00:14:05]} Nhf6 {[%emt 00:00:47] [%clk 00:14:39]} 11. O-O
{[%emt 00:00:05] [%clk 00:14:09]} O-O {[%emt 00:00:04] [%clk 00:14:46]} 12. Qc2
{[%emt 00:00:07] [%clk 00:14:11]} Re8 {[%emt 00:00:06] [%clk 00:14:51]} 13. Rab1
{[%emt 00:00:15] [%clk 00:14:06]} a5 {[%emt 00:00:13] [%clk 00:14:48]} 14. a3
{[%emt 00:00:02] [%clk 00:14:14]} b5 {[%emt 00:02:16] [%clk 00:12:42]} 15. Bd3
{[%emt 00:00:29] [%clk 00:13:54]} Bb7 {[%emt 00:01:03] [%clk 00:11:50]} 16. Rfc1
{[%emt 00:00:15] [%clk 00:13:49]} g6 {[%emt 00:00:20] [%clk 00:11:40]} 17. a4
{[%emt 00:00:15] [%clk 00:13:44]} b4 {[%emt 00:00:21] [%clk 00:11:28]} 18. Ne2
{[%emt 00:00:04] [%clk 00:13:51]} Rac8 {[%emt 00:01:00] [%clk 00:10:39]} 19. Qd1
{[%emt 00:01:11] [%clk 00:12:49]} Ne4 {[%emt 00:00:27] [%clk 00:10:21]} 20. Bxe4
{[%emt 00:00:08] [%clk 00:12:52]} dxe4 {[%emt 00:00:03] [%clk 00:10:28]} 21. Nd2
{[%emt 00:00:05] [%clk 00:12:57]} c5 {[%emt 00:00:07] [%clk 00:10:31]} 22. Nc4
{[%emt 00:01:21] [%clk 00:11:46]} Ba6 {[%emt 00:02:27] [%clk 00:08:15]} 23. b3
{[%emt 00:01:24] [%clk 00:10:31]} cxd4 {[%emt 00:01:52] [%clk 00:06:33]} 24.
Qxd4 {[%emt 00:00:38] [%clk 00:10:03]} Red8 {[%emt 00:00:03] [%clk 00:06:41]}
25. Qa7 {[%emt 00:02:29] [%clk 00:07:43]} Bxc4 {[%emt 00:00:03] [%clk 00:06:48]}
26. bxc4 {[%emt 00:00:39] [%clk 00:07:14]} Qc5 {[%emt 00:00:08] [%clk 00:06:50]}
27. Qb7 {[%emt 00:00:26] [%clk 00:06:58]} Nb6 {[%emt 00:00:48] [%clk 00:06:12]}
28. Qxe4 {[%emt 00:00:26] [%clk 00:06:41]} Nxa4 {[%emt 00:00:05] [%clk
00:06:18]} 29. h4 {[%emt 00:00:18] [%clk 00:06:33]} Rd2 {[%emt 00:00:25] [%clk
00:06:03]} 30. Qf3 {[%emt 00:00:42] [%clk 00:06:02]} Rxe2 {[%emt 00:03:52] [%clk
00:02:21]} 31. Qxe2 {[%emt 00:00:04] [%clk 00:06:08]} Nc3 {[%clk 00:02:30]} 32.
Rxc3 {[%emt 00:01:46] [%clk 00:04:32]} bxc3 {[%clk 00:02:38]} 33. Kf1 {[%emt
00:01:17] [%clk 00:03:25]} Rd8 {[%emt 00:01:14] [%clk 00:01:35]} 34. Qa2 {[%emt
00:00:22] [%clk 00:03:13]} Rd2 {[%emt 00:00:04] [%clk 00:01:40]} 35. Qb3 {[%emt
00:00:14] [%clk 00:03:09]} Qf5 {[%emt 00:00:27] [%clk 00:01:22]} 36. f3 {[%emt
00:01:46] [%clk 00:01:33]} Qd3+ {[%emt 00:00:08] [%clk 00:01:25]} 37. Kg1 {[%emt
00:00:04] [%clk 00:01:39]} Qxe3+ {[%emt 00:00:02] [%clk 00:01:33]} 38. Kh1
{[%emt 00:00:21] [%clk 00:01:28]} c2 {[%emt 00:00:05] [%clk 00:01:38]} 0-1

[Site "Europe Echecs"]

[Event "Championnat d'Europe Rapide"]
[Date "2024.12.07"]
[White "Guliyev, Namig"]
[Black "Balinski, Damian"]
[WhiteElo "2484"]
[BlackElo "2203"]
[Round "6.48"]
[Result "1-0"]
[TimeControl "900+10"]

1. e4 {[%emt 00:00:14] [%clk 00:15:07]} d6 {[%clk 00:15:19]} 2. d4 {[%emt
00:00:05] [%clk 00:15:11]} Nf6 {[%emt 00:00:02] [%clk 00:15:28]} 3. Nc3 {[%emt
00:00:01] [%clk 00:15:20]} g6 {[%emt 00:00:01] [%clk 00:15:37]} 4. Nf3 {[%emt
00:00:03] [%clk 00:15:27]} Bg7 {[%emt 00:00:02] [%clk 00:15:45]} 5. Be2 {[%emt
00:00:02] [%clk 00:15:35]} O-O {[%emt 00:00:02] [%clk 00:15:53]} 6. Be3 {[%emt
00:00:02] [%clk 00:15:43]} a6 {[%emt 00:00:20] [%clk 00:15:44]} 7. a4 {[%emt
00:00:07] [%clk 00:15:45]} b6 {[%emt 00:00:05] [%clk 00:15:49]} 8. O-O {[%emt
00:00:12] [%clk 00:15:43]} Bb7 {[%emt 00:00:02] [%clk 00:15:57]} 9. Nd2 {[%emt
00:00:30] [%clk 00:15:23]} e5 {[%emt 00:02:17] [%clk 00:13:50]} 10. d5 {[%emt
00:00:30] [%clk 00:15:03]} Ne8 {[%emt 00:01:04] [%clk 00:12:56]} 11. Nc4 {[%emt
00:00:10] [%clk 00:15:03]} f5 {[%emt 00:00:24] [%clk 00:12:41]} 12. exf5 {[%emt
00:00:06] [%clk 00:15:08]} gxf5 {[%emt 00:00:03] [%clk 00:12:48]} 13. f4 {[%emt
00:00:01] [%clk 00:15:17]} Nd7 {[%emt 00:03:21] [%clk 00:09:37]} 14. Qd2 {[%emt
00:00:04] [%clk 00:15:23]} e4 {[%emt 00:00:45] [%clk 00:09:02]} 15. Kh1 {[%emt
00:00:20] [%clk 00:15:12]} Qh4 {[%emt 00:02:40] [%clk 00:06:33]} 16. g3 {[%emt
00:00:13] [%clk 00:15:09]} Qh6 {[%emt 00:00:08] [%clk 00:06:35]} 17. Bd4 {[%emt
00:00:05] [%clk 00:15:14]} Nef6 {[%emt 00:00:26] [%clk 00:06:18]} 18. Ne3 {[%emt
00:00:06] [%clk 00:15:18]} Qg6 {[%emt 00:00:05] [%clk 00:06:24]} 19. Rg1 {[%emt
00:01:15] [%clk 00:14:13]} h5 {[%emt 00:00:02] [%clk 00:06:32]} 20. h3 {[%emt
00:00:03] [%clk 00:14:21]} Rae8 {[%emt 00:00:57] [%clk 00:05:45]} 21. Rg2 {[%emt
00:00:03] [%clk 00:14:27]} Ne5 {[%emt 00:01:09] [%clk 00:04:45]} 22. Rf1 {[%emt
00:00:22] [%clk 00:14:16]} Nf7 {[%emt 00:00:06] [%clk 00:04:49]} 23. Qd1 {[%emt
00:00:43] [%clk 00:13:43]} Nh6 {[%emt 00:00:40] [%clk 00:04:19]} 24. Bxf6 {[%emt
00:00:11] [%clk 00:13:42]} Qxf6 {[%emt 00:00:01] [%clk 00:04:27]} 25. Bxh5
{[%emt 00:00:02] [%clk 00:13:50]} Re7 {[%emt 00:00:02] [%clk 00:04:36]} 26. Qe1
{[%emt 00:00:26] [%clk 00:13:33]} Qd4 {[%emt 00:00:16] [%clk 00:04:31]} 27. g4
{[%emt 00:00:20] [%clk 00:13:23]} fxg4 {[%emt 00:00:40] [%clk 00:04:00]} 28.
hxg4 {[%emt 00:00:02] [%clk 00:13:32]} Bc8 {[%emt 00:01:19] [%clk 00:02:52]} 29.
f5 {[%emt 00:01:32] [%clk 00:12:09]} Be5 {[%emt 00:00:36] [%clk 00:02:25]} 30.
Bg6 {[%emt 00:00:15] [%clk 00:12:04]} Kg7 {[%emt 00:00:32] [%clk 00:02:04]} 31.
g5 {[%emt 00:02:25] [%clk 00:09:49]} Rh8 {[%emt 00:01:49] [%clk 00:00:25]} 32.
f6+ {[%emt 00:00:29] [%clk 00:09:30]} Kxg6 {[%emt 00:00:22] [%clk 00:00:13]} 33.
gxh6+ {[%emt 00:00:02] [%clk 00:09:38]} Kxh6 {[%emt 00:00:11] [%clk 00:00:12]}
34. Qh4# {[%emt 00:00:11] [%clk 00:09:36]} 1-0

[Site "Europe Echecs"]